bitfinex/quotes_ETHUSD_20240922
["timestamp","ask_amount","ask_price","bid_price","bid_amount"]
[1727001760858,6.8844,2574.4,2573.9,3.88514]
[1727001761016,0.11468849,2574.3,2573.7,3.88531]
[1727001761215,0.11468849,2574.3,2573.8,3.88521]
[1727001761650,0.11468849,2574.3,2573.9,3.88513]
[1727001761842,0.11468849,2574.3,2573.9,0.388513]
[1727001762039,0.11468849,2574.3,2574.0,3.88496]
[1727001762267,2.2929,2574.5,2574.1,3.88484]
[1727001762416,2.2929,2574.5,2574.1,3.88476]
[1727001762777,0.11480717,2574.4,2574.1,3.88476]
[1727001764508,0.11480717,2574.4,2573.9,3.88501]
[1727001764621,0.11480717,2574.4,2574.1,3.88482]
[1727001764821,0.11480717,2574.4,2574.0,0.55]
[1727001765055,0.11480717,2574.4,2574.0,4.43489]
[1727001765820,0.11480717,2574.4,2573.9,7.77005]
[1727001766024,0.11480717,2574.4,2573.9,3.88501]
[1727001766264,0.11480717,2574.4,2574.0,3.88488]
[1727001766630,0.11480717,2574.4,2574.0,7.76979]
[1727001766863,0.11480717,2574.4,2574.0,3.88488]
[1727001767628,0.11480717,2574.4,2574.0,7.76976]
[1727001767822,0.11480717,2574.4,2574.0,3.88488]
[1727001768346,0.11480717,2574.4,2574.0,7.7698]
[1727001768547,0.11480717,2574.4,2574.0,3.88488]
[1727001769690,0.11480717,2574.4,2573.9,3.88513]
[1727001770245,3.99927717,2574.4,2573.9,4.43514]
[1727001770477,0.11480717,2574.4,2573.9,4.43514]
[1727001770779,0.11480717,2574.4,2574.0,3.88497]
[1727001772287,0.11480717,2574.4,2573.8,3.8852]
[1727001772788,0.11480717,2574.4,2573.7,0.55]
[1727001772942,0.11480717,2574.4,2573.7,1.26558505]
[1727001773957,0.11480717,2574.4,2573.7,0.55]
[1727001776087,0.11480717,2574.4,2573.8,2.2788]
[1727001776292,10.06099,2574.7,2573.9,0.55]
[1727001776658,0.1127315,2574.6,2573.9,0.55]
[1727001777048,0.1127315,2574.6,2573.9,0.62768975]
[1727001777267,0.1127315,2574.6,2573.9,0.91833872]
[1727001777992,0.1127315,2574.6,2574.1,0.55]
[1727001778195,0.005848,2574.8,2574.3,0.55]
[1727001778409,0.005848,2574.8,2574.5,0.55]
[1727001778555,0.005848,2574.8,2574.6,0.07767067]
[1727001778965,0.005848,2574.8,2574.7,0.55]
[1727001779186,0.005848,2574.8,2574.7,2.8321]
[1727001782951,0.005848,2574.8,2574.7,2.90975681]
[1727001783788,0.005848,2574.8,2574.7,5.90975681]
[1727001786102,0.005848,2574.8,2574.7,5.8321]
[1727001786303,0.005848,2574.8,2574.7,6.44440771]
[1727001787671,0.005848,2574.8,2574.7,6.52205697]
[1727001788168,0.005848,2574.8,2574.7,6.44440771]
[1727001788910,0.005848,2574.8,2574.7,6.52206248]
[1727001789076,0.005848,2574.8,2574.7,6.52206635]
[1727001789277,0.005848,2574.8,2574.7,3.52206635]
[1727001789817,0.005848,2574.8,2574.7,6.52206635]
[1727001790992,0.005848,2574.8,2574.7,6.52205325]
[1727001794697,0.005848,2574.8,2574.7,22.92579625]
[1727001795000,0.0462315,2575.7,2575.1,2.2821]
[1727001795224,0.0462315,2575.7,2575.4,0.55]
[1727001795526,0.0462315,2575.7,2575.6,2.8321]
[1727001795724,0.0462315,2575.7,2575.6,5.8321]
[1727001801631,28.423763,2576.6,2575.8,2.3076]
[1727001801786,28.423763,2576.6,2576.0,2.3076]
[1727001801983,0.11064396,2576.5,2576.0,2.3076]
[1727001802183,0.11064396,2576.5,2576.2,2.3076]
[1727001802390,0.11064396,2576.5,2576.4,2.3076]
[1727001802908,28.423763,2576.6,2576.4,2.3076]
[1727001803086,15.1877405,2576.6,2576.5,17.03608377]
[1727001803419,15.29902187,2576.6,2576.5,7.68823977]
[1727001803925,15.29902187,2576.6,2576.5,8.23823977]
[1727001804325,15.1877405,2576.6,2576.5,8.23823977]
[1727001805028,15.1877405,2576.6,2576.5,6.09612077]
[1727001805629,15.29982246,2576.6,2576.5,3.78852077]
[1727001805838,15.19982246,2576.6,2576.5,5.54612077]
[1727001807218,15.19982246,2576.6,2576.5,6.09612077]
[1727001808506,15.07252246,2576.6,2576.5,3.78852077]
[1727001808711,14.60322246,2576.6,2576.5,0.78852077]
[1727001809132,14.60322246,2576.6,2576.5,0.86612837]
[1727001809337,14.60322246,2576.6,2575.9,2.3076]
[1727001810822,14.60322246,2576.6,2576.0,3.55]
[1727001811322,14.60322246,2576.6,2576.2,0.55]
[1727001811546,2.2599,2576.5,2575.9,3.0]
[1727001811853,2.37180774,2576.5,2576.0,1.22285359]
[1727001812612,0.11190774,2576.5,2576.1,2.8576]
[1727001812856,0.11190774,2576.5,2576.3,0.55]
[1727001813155,0.15753874,2576.5,2576.4,0.07761203]
[1727001813392,0.15753874,2576.5,2576.4,0.99037323]
[1727001814160,0.15753874,2576.5,2576.4,3.29797323]
[1727001814368,0.15753874,2576.5,2576.4,6.29797323]
[1727001814573,0.045631,2576.5,2576.4,6.2203612]
[1727001814761,0.15738629,2576.5,2576.4,6.2203612]
[1727001815083,0.045631,2576.5,2576.4,6.2203612]
[1727001815247,14.4911405,2576.6,2576.5,3.55]
[1727001815585,14.4911405,2576.6,2576.5,4.24964122]
[1727001816635,14.4911405,2576.6,2576.5,3.55724122]
[1727001816834,14.4911405,2576.6,2576.5,6.55724122]
[1727001817575,14.4911405,2576.6,2576.5,17.37220322]
[1727001817777,14.4911405,2576.6,2576.5,32.79516312]
[1727001817949,12.96711897,2576.6,2576.5,27.44319412]
[1727001818292,11.34705079,2576.6,2576.5,27.44319412]
[1727001819642,11.14759091,2576.6,2576.5,27.92161305]
[1727001821084,11.14759091,2576.6,2576.5,27.44319412]
[1727001821251,11.14759091,2576.6,2576.5,62.44319412]
[1727001822788,10.79922869,2576.6,2576.5,62.44319412]
[1727001822952,10.79922869,2576.6,2576.5,62.92161305]
[1727001823154,10.79922869,2576.6,2576.5,82.76161305]
[1727001824040,10.79922869,2576.6,2576.5,82.28319412]
[1727001824246,10.33519933,2576.6,2576.5,83.90457708]
[1727001824470,10.33519933,2576.6,2576.5,84.44913548]
[1727001824744,0.0407963,2577.3,2576.6,5.364]
[1727001825044,0.0407963,2577.3,2576.9,2.364]
[1727001825275,0.0407963,2577.3,2577.1,3.0]
[1727001825585,0.0407963,2577.3,2577.2,17.05481392]
[1727001825767,0.0407963,2577.3,2577.2,18.160597]
[1727001826198,0.0407963,2577.3,2577.2,5.364]
[1727001826510,0.0407963,2577.3,2577.2,36.19058222]
[1727001826710,0.0407963,2577.3,2577.2,29.27664791]
[1727001826895,0.0407963,2577.3,2577.2,27.81444691]
[1727001827059,0.0407963,2577.3,2577.2,25.04345991]
[1727001827668,0.0407963,2577.3,2577.2,34.25155091]
[1727001827867,0.0407963,2578.2,2577.3,5.914]
[1727001828096,0.0407963,2578.2,2577.7,0.55]
[1727001828368,0.0407963,2578.2,2578.0,3.55]
[1727001828569,0.0407963,2578.2,2578.1,0.62754943]
[1727001833744,0.0407963,2578.2,2578.1,0.55]
[1727001833882,0.0407963,2578.2,2578.1,0.6275492]
[1727001836239,2.5343963,2578.2,2578.1,0.07755074]
[1727001836446,2.5343963,2578.2,2578.1,0.07755512]
[1727001836594,2.5343963,2578.2,2577.6,0.07755808]
[1727001836800,2.5343963,2578.2,2577.6,1.68255886]
[1727001837720,2.5343963,2578.2,2577.7,0.55]
[1727001838040,2.5343963,2578.2,2577.9,0.55]
[1727001838195,2.5343963,2578.2,2578.1,0.55]
[1727001838599,2.5343963,2578.2,2577.2,23.68]
[1727001838926,2.78783593,2578.2,2577.5,0.07756992]
[1727001839295,2.4268,2578.0,2577.5,0.07756992]
[1727001840238,2.4268,2578.0,2577.6,0.55]
[1727001840445,2.4268,2578.0,2577.8,0.55]
[1727001840603,2.4268,2578.0,2577.9,0.07757166]
[1727001841140,2.5367616,2578.0,2577.9,0.07757166]
[1727001849735,2.5367616,2578.0,2577.9,0.62757166]
[1727001849946,0.1099616,2578.0,2577.9,0.62757166]
[1727001850255,2.4675963,2578.2,2578.0,0.55]
[1727001850555,2.4675963,2578.2,2578.1,0.0775653]
[1727001850854,2.4675963,2578.2,2578.0,0.62756418]
[1727001851421,2.4675963,2578.2,2577.6,0.55]
[1727001851686,2.4675963,2578.2,2577.7,0.07756909]
[1727001851980,2.4268,2578.0,2577.8,0.55]
[1727001852279,0.10961052,2577.9,2577.8,0.55]
[1727001853927,2.4268,2578.0,2577.8,0.55]
[1727001854487,2.4268,2578.0,2577.9,0.62756727]
[1727001854684,0.0407963,2578.2,2578.1,0.55]
[1727001854841,0.0407963,2578.2,2578.1,4.22418751]
[1727001855144,0.0407963,2578.2,2578.1,1.22418751]
[1727001855325,0.0407963,2578.2,2577.9,3.62755672]
[1727001858544,0.0407963,2578.2,2578.0,0.07755721]
[1727001858749,0.0407963,2578.2,2578.1,0.55]
[1727001862677,0.0407963,2578.2,2578.1,0.89286882]
[1727001864473,0.0407963,2578.2,2578.1,3.33116882]
[1727001864687,0.0407963,2578.2,2578.1,7.02712297]
[1727001866497,2.3892963,2578.2,2578.1,1.03882297]
[1727001866652,2.3892963,2578.2,2578.0,0.34309135]
[1727001866992,2.3892963,2578.2,2578.1,0.07756184]
[1727001867385,0.0407963,2578.2,2578.1,0.42065319]
[1727001867864,0.0407963,2578.2,2578.1,0.62756184]
[1727001868065,0.0407963,2578.2,2578.1,0.97065319]
[1727001868268,0.0407963,2578.2,2578.1,1.36771851]
[1727001871107,0.0407963,2578.2,2578.1,9.77172095]
[1727001871395,0.0407963,2579.0,2578.5,2.3694]
[1727001871564,0.10359456,2578.9,2578.6,3.62753275]
[1727001871768,0.0407963,2579.0,2578.8,0.55]
[1727001871962,0.0407963,2579.0,2578.9,0.62753277]
[1727001872463,2.2809,2579.3,2578.9,0.62753277]
[1727001872464,2.2809,2579.3,2579.0,0.55]
[1727001872670,2.3235769,2579.3,2579.2,0.55]
[1727001873195,2.42735017,2579.3,2579.2,0.55]
[1727001874178,2.42735017,2579.3,2579.2,0.91275327]
[1727001874878,0.14645017,2579.3,2579.2,3.35968604]
[1727001875080,1.20985845,2579.4,2579.2,3.35968604]
[1727001875081,1.20985845,2579.4,2579.2,6.35968604]
[1727001875270,1.20985845,2579.4,2579.3,4.1859686]
[1727001879862,1.20985845,2579.4,2579.3,1.1859686]
[1727001881626,1.20985845,2579.4,2579.1,3.0]
[1727001881627,2.3727,2579.3,2578.8,0.34206648]
[1727001881910,2.3727,2579.3,2578.7,11.22]
[1727001882410,2.3727,2579.3,2578.8,0.07753306]
[1727001882930,2.3727,2579.3,2578.9,0.55]
[1727001883072,2.3727,2579.3,2579.0,0.07753308]
[1727001883265,2.3727,2579.3,2579.1,0.55]
[1727001884770,0.0406542,2579.8,2579.1,0.55]
[1727001884927,0.0406542,2579.8,2579.3,3.55]
[1727001885087,0.09435532,2579.7,2579.5,0.55]
[1727001885416,0.0406542,2579.8,2579.7,0.55]
[1727001886308,0.0406542,2579.8,2579.7,0.62750891]
[1727001886537,0.0406542,2579.8,2579.7,0.55]
[1727001887038,0.0406542,2579.8,2579.5,0.55]
[1727001887177,0.0406542,2579.8,2579.6,0.0775089]
[1727001887377,0.0406542,2579.8,2579.7,0.55]
[1727001888866,0.0406542,2579.8,2579.7,6.07100892]
[1727001889013,2.3727,2580.6,2579.9,0.55]
[1727001890056,0.0406542,2580.7,2580.0,2.4435]
[1727001890363,0.0406542,2580.7,2580.1,3.62748119]
[1727001890718,0.08544819,2580.6,2580.1,3.62748119]
[1727001890976,0.0406542,2580.7,2580.3,0.55]
[1727001891262,0.08558677,2580.6,2580.5,0.55]
[1727001894538,0.03558677,2580.6,2580.5,0.55]
[1727001894763,0.08402077,2580.6,2580.5,0.55]
[1727001896729,0.08402077,2580.6,2580.3,0.55]
[1727001897154,0.0406542,2580.7,2580.5,0.55]
[1727001897865,0.0406542,2580.7,2580.6,3.62748712]
[1727001898152,0.0406542,2580.7,2580.6,4.23458583]
[1727001898366,0.0406542,2580.7,2580.6,1.15709871]
[1727001898864,0.0406542,2580.7,2580.6,1.23458296]
[1727001899064,0.0406542,2580.7,2580.6,6.68488296]
[1727001900350,0.0406542,2580.7,2580.6,1.23458296]
[1727001902754,0.0406542,2580.7,2580.6,1.23457296]
[1727001903062,0.0406542,2580.7,2580.6,1.15709871]
[1727001903552,0.0406542,2580.7,2580.6,0.60709871]
[1727001903553,0.12498912,2580.7,2580.6,0.60709871]
[1727001903761,0.0406542,2580.7,2580.2,2.4503]
[1727001903964,0.12499744,2580.7,2580.2,2.4503]
[1727001904123,0.0406542,2580.7,2580.2,2.4503]
[1727001904626,0.0406542,2580.7,2580.3,0.07748585]
[1727001904841,0.0406542,2580.7,2580.4,0.55]
[1727001905181,0.0406542,2580.7,2580.6,0.55]
[1727001906565,0.0406542,2580.7,2580.4,0.55]
[1727001906754,0.0406542,2580.7,2580.6,0.55]
[1727001906923,0.0406542,2580.7,2580.6,0.62748304]
[1727001908619,0.0406542,2580.7,2580.6,0.55]
[1727001910864,2.4694542,2580.7,2579.8,7.38]
[1727001911068,2.4694542,2580.7,2579.7,1.00797115]
[1727001911254,2.71639962,2580.7,2579.9,0.07750163]
[1727001911773,2.50994435,2580.6,2579.9,0.07750163]
[1727001912073,2.50994435,2580.6,2579.8,0.91630252]
[1727001912972,2.50994435,2580.6,2579.8,0.83879712]
[1727001913177,2.50994435,2580.6,2579.8,0.55]
[1727001913344,2.50994435,2580.6,2579.7,3.68461235]
[1727001914577,2.4288,2580.6,2579.8,0.55]
[1727001914874,0.28759962,2580.7,2579.9,0.07751008]
[1727001914875,2.4288,2580.4,2579.9,0.07751008]
[1727001915372,2.4288,2580.2,2579.9,0.07751008]
[1727001917280,2.4288,2580.2,2579.9,0.54106143]
[1727001920363,2.4288,2580.2,2579.8,0.62751164]
[1727001920702,2.4288,2580.2,2579.3,7.38]
[1727001921076,2.4626,2580.0,2579.3,7.38]
[1727001921393,0.07776607,2580.1,2578.9,12.43]
[1727001921394,2.4626,2579.8,2579.0,7.45753597]
[1727001921782,2.4626,2579.6,2579.0,7.45753597]
[1727001922176,0.07705257,2579.5,2579.0,7.45753597]
[1727001922362,2.4626,2579.6,2579.0,7.45753597]
[1727001922693,2.4626,2579.4,2579.0,7.45753597]
[1727001922911,2.4626,2579.4,2579.0,2.36628957]
[1727001923065,2.4626,2579.4,2579.0,0.07753597]
[1727001923255,2.4626,2579.4,2578.9,0.55]
[1727001923597,2.4626,2579.4,2579.0,0.07753735]
[1727001924069,2.4626,2579.4,2578.8,0.07753741]
[1727001924272,0.07678828,2579.3,2578.7,0.0775431]
[1727001924501,2.4626,2579.2,2578.7,1.12329741]
[1727001925197,2.4626,2579.2,2578.7,1.04575431]
[1727001925423,2.4626,2579.2,2578.8,0.07754579]
[1727001926920,2.4626,2579.2,2578.7,1.04575431]
[1727001927095,0.07647368,2579.1,2578.7,1.04575431]
[1727001927298,2.4626,2579.0,2578.7,1.04575431]
[1727001927508,2.4626,2579.0,2578.6,3.0775465]
[1727001927706,0.07641147,2578.9,2578.6,3.0775465]
[1727001928185,0.07641147,2578.9,2577.9,0.50186347]
[1727001928186,2.4626,2579.0,2578.3,0.55]
[1727001928391,2.4626,2579.0,2578.1,2.4915]
[1727001928392,2.4626,2579.0,2578.4,0.07755109]
[1727001928585,2.4626,2579.0,2577.8,0.50186347]
[1727001928586,2.4626,2578.8,2577.8,2.99336347]
[1727001929010,0.07596861,2578.7,2577.9,0.40169262]
[1727001929212,0.07596861,2578.7,2577.9,0.47925063]
[1727001929403,0.07596861,2578.7,2577.9,3.47925063]
[1727001929705,2.4626,2578.8,2577.9,3.47925063]
[1727001929996,2.4626,2578.8,2578.1,0.55]
[1727001930200,2.4626,2578.6,2578.2,0.07755718]
[1727001930400,2.4626,2578.6,2578.3,0.07756078]
[1727001930603,0.07555431,2578.5,2578.3,0.07756078]
[1727001931425,0.07555431,2578.5,2578.1,0.62756088]
[1727001931925,2.4626,2578.6,2578.1,0.40292535]
[1727001932686,2.4626,2578.6,2578.2,0.07756458]
[1727001932883,2.4626,2578.6,2578.3,0.55]
[1727001932884,0.11368744,2578.5,2578.3,0.55]
[1727001933082,2.4626,2578.6,2578.2,0.07755824]
[1727001933804,2.4626,2578.6,2578.0,0.55]
[1727001933988,2.4626,2578.6,2577.9,3.55]
[1727001934345,2.4626,2578.6,2578.0,0.6111454]
[1727001934626,2.4626,2578.6,2578.0,0.08455895]
[1727001940021,2.4626,2578.6,2578.0,0.0069954]
[1727001940692,2.4626,2578.6,2578.0,0.08455943]
[1727001941027,2.4626,2578.6,2578.0,0.0069954]
[1727001941329,0.10989395,2578.5,2578.0,0.0069954]
[1727001941499,2.4789,2578.4,2578.0,0.0069954]
[1727001941989,2.4789,2578.2,2578.0,0.0069954]
[1727001942406,2.58850032,2578.1,2578.0,0.0069954]
[1727001949189,0.10960032,2578.1,2578.0,0.0069954]
[1727001949602,2.2616,2578.3,2578.0,0.0069954]
[1727001950490,2.2616,2578.4,2578.0,0.0069954]
[1727001950718,2.2616,2579.4,2578.0,0.5569954]
[1727001950918,0.1059112,2578.3,2578.2,0.55]
[1727001951128,2.2616,2578.6,2578.2,0.55]
[1727001951335,2.2616,2578.6,2578.3,0.07755904]
[1727001952118,2.2616,2578.6,2578.4,0.07755907]
[1727001953196,2.2616,2578.6,2578.3,0.0775588]
[1727001953395,2.2616,2578.6,2578.2,0.62755889]
[1727001957195,2.2616,2578.6,2578.1,0.37045176]
[1727001957399,2.2616,2578.6,2578.1,0.0069954]
[1727001957641,2.2616,2578.4,2578.1,0.0069954]
[1727001957960,0.10598844,2578.3,2578.1,0.0069954]
[1727001958797,2.2616,2578.4,2578.1,0.0069954]
[1727001959193,0.10592874,2578.3,2578.1,0.0069954]
[1727001959631,2.2616,2578.4,2578.1,0.0069954]
[1727001960083,0.10592874,2578.3,2578.1,0.0069954]
[1727001960439,2.2616,2578.4,2578.1,0.0069954]
[1727001960639,0.10592874,2578.3,2578.1,0.0069954]
[1727001960884,2.2616,2578.4,2578.1,0.0069954]
[1727001961065,0.10587478,2578.2,2578.1,0.0069954]
[1727001961376,2.2616,2578.4,2578.1,0.0069954]
[1727001961574,2.2616,2578.4,2578.1,0.31921185]
[1727001964114,2.3721,2579.1,2578.1,0.31921185]
[1727001964682,2.3721,2578.9,2578.1,0.31921185]
[1727001964888,0.10653716,2578.8,2578.1,0.31921185]
[1727001966624,2.3721,2578.7,2578.1,0.31921185]
[1727001966775,2.61996372,2578.7,2578.1,0.0069954]
[1727001966973,2.3721,2578.5,2578.1,0.0069954]
[1727001967518,0.10643828,2578.4,2578.1,0.0069954]
[1727001967703,2.3721,2578.3,2578.1,0.0069954]
[1727001968017,2.47842062,2578.3,2578.1,0.0069954]
[1727001969275,2.72626268,2578.3,2578.1,0.0069954]
[1727001970421,2.47842062,2578.3,2578.1,0.0069954]
[1727001971708,0.10632062,2578.3,2578.1,0.0069954]
[1727001972131,2.3721,2578.7,2578.1,0.0069954]
[1727001972718,0.10601405,2578.6,2578.1,0.0069954]
[1727001973784,0.10601405,2578.6,2578.3,2.8431]
[1727001973997,2.3721,2578.9,2578.4,0.29206669]
[1727001974214,0.10595505,2578.5,2578.4,0.369627]
[1727001974416,2.3721,2578.9,2578.4,0.91962676]
[1727001974618,0.10609938,2578.5,2578.4,0.36962676]
[1727001974824,2.3721,2578.9,2578.4,0.91962676]
[1727001975056,0.10609938,2578.5,2578.4,0.84206669]
[1727001975183,2.3721,2578.9,2578.4,0.84206669]
[1727001975526,2.3721,2578.9,2578.4,0.55]
[1727001975816,0.10645617,2578.8,2578.4,0.55]
[1727001984550,0.10645617,2578.8,2578.1,2.3270954]
[1727001984835,5.08717845,2579.1,2578.1,2.3270954]
[1727001984836,2.4867,2578.7,2578.1,2.3270954]
[1727001984998,0.24867,2578.6,2578.1,0.0069954]
[1727001985338,2.4867,2578.5,2578.1,0.0069954]
[1727001985506,2.59325266,2578.5,2578.1,0.0069954]
[1727001986533,2.59325266,2578.5,2578.1,2.3270954]
[1727001986736,0.10655266,2578.5,2578.1,2.62256174]
[1727001986935,2.4867,2578.7,2578.1,2.62256174]
[1727001987143,0.10610975,2578.4,2578.1,2.3270954]
[1727001987324,2.4867,2578.7,2578.1,0.0069954]
[1727001987530,0.10619187,2578.3,2578.1,0.0069954]
[1727001987851,2.4867,2578.6,2578.1,0.0069954]
[1727001988052,0.10586571,2578.2,2578.1,0.0069954]
[1727001988342,2.4867,2578.6,2578.1,0.0069954]
[1727001988526,0.10587972,2578.2,2578.1,0.0069954]
[1727001988728,2.4867,2578.6,2578.1,0.0069954]
[1727001988902,0.10587972,2578.2,2578.1,0.0069954]
[1727001989649,2.4867,2578.6,2578.1,0.0069954]
[1727001989807,0.10587972,2578.2,2578.1,2.3270954]
[1727001990203,2.4867,2578.6,2578.1,2.3270954]
[1727001990444,0.10587972,2578.2,2578.1,2.3270954]
[1727001990651,2.4867,2578.6,2578.1,2.61480494]
[1727001990939,0.1060416,2578.5,2578.1,2.61480494]
[1727001991349,2.4867,2578.4,2578.1,0.0069954]
[1727001991506,2.59269662,2578.4,2578.1,0.0069954]
[1727001995066,0.10599662,2578.4,2578.1,0.0069954]
[1727001995248,0.10599662,2578.4,2578.1,0.5569954]
[1727001995444,2.4867,2578.7,2578.1,0.84470494]
[1727001995620,0.10590086,2578.3,2578.1,0.84470494]
[1727001995826,2.4867,2578.7,2578.1,0.84470494]
[1727001996509,0.10605675,2578.6,2578.1,0.84470494]
[1727001998314,0.10605675,2578.6,2578.4,2.3554]
[1727001998571,0.10605675,2578.6,2578.5,0.29054]
[1727001998845,2.4727,2579.0,2578.5,0.29054]
[1727001999057,2.4727,2579.0,2578.4,2.43295945]
[1727001999556,2.4727,2579.0,2578.4,2.3554]
[1727002001433,3.68255845,2579.3,2578.5,0.55]
[1727002001671,0.10684432,2578.9,2578.5,0.55]
[1727002002181,0.10686797,2578.8,2578.4,2.3554]
[1727002002474,2.4727,2578.8,2578.1,0.0069954]
[1727002002638,2.4727,2578.6,2578.1,0.0069954]
[1727002003070,0.10629786,2578.5,2578.1,0.0069954]
[1727002003270,0.48518349,2578.5,2578.1,0.0069954]
[1727002004273,2.4727,2578.4,2578.1,0.0069954]
[1727002004652,3.78882176,2578.4,2578.1,0.0069954]
[1727002004980,2.57896331,2578.4,2578.1,0.0069954]
[1727002005196,3.78882176,2578.4,2578.1,0.0069954]
[1727002005338,2.57896331,2578.4,2578.1,0.0069954]
[1727002005540,0.37888218,2578.3,2578.1,0.0069954]
[1727002005834,0.48503226,2578.3,2578.1,0.0069954]
[1727002006044,2.4727,2578.2,2578.1,0.0069954]
[1727002006456,2.57869345,2578.2,2578.1,0.0069954]
[1727002011986,3.7885519,2578.2,2578.1,0.0069954]
[1727002012189,3.93245432,2578.2,2578.1,0.0069954]
[1727002013142,5.14231277,2578.2,2578.1,0.0069954]
[1727002013791,3.93245432,2578.2,2578.1,0.0069954]
[1727002013951,5.14231277,2578.2,2578.1,0.0069954]
[1727002014152,3.93245432,2578.2,2578.1,0.0069954]
[1727002017462,7.81112432,2578.2,2578.1,0.0069954]
[1727002017656,12.02098277,2578.2,2578.1,0.0069954]
[1727002017889,12.42426893,2578.2,2578.1,0.0069954]
[1727002018199,12.0228705,2578.2,2578.1,0.0069954]
[1727002018359,12.02285545,2578.2,2578.1,0.0069954]
[1727002018689,12.02287065,2578.2,2578.1,0.0069954]
[1727002020411,6.93245432,2578.2,2578.1,0.0069954]
[1727002020763,10.81112432,2578.2,2578.1,0.0069954]
[1727002021056,12.02287065,2578.2,2578.1,0.0069954]
[1727002026004,12.42426893,2578.2,2578.1,0.0069954]
[1727002028929,12.02152901,2578.2,2578.1,0.0069954]
[1727002029124,10.81112432,2578.2,2578.1,0.0069954]
[1727002029411,8.14294051,2578.2,2578.1,0.0069954]
[1727002029613,6.93245432,2578.2,2578.1,0.0069954]
[1727002032707,10.81112432,2578.2,2578.1,0.0069954]
[1727002034317,12.02161051,2578.2,2578.1,0.0069954]
[1727002034691,10.81112432,2578.2,2578.1,0.0069954]
[1727002035101,12.02161051,2578.2,2578.1,0.0069954]
[1727002035630,12.42426893,2578.2,2578.1,0.0069954]
[1727002037325,12.82920889,2578.2,2578.1,0.0069954]
[1727002043094,13.6357698,2578.2,2578.1,0.0069954]
[1727002043323,8.14307266,2578.2,2578.1,0.0069954]
[1727002043521,12.02174266,2578.2,2578.1,0.0069954]
[1727002044029,10.81112432,2578.2,2578.1,0.0069954]
[1727002044391,12.42515146,2578.2,2578.1,0.0069954]
[1727002045096,10.81112432,2578.2,2578.1,0.0069954]
[1727002045295,12.82888589,2578.2,2578.1,0.0069954]
[1727002046123,10.81112432,2578.2,2578.1,0.0069954]
[1727002047607,13.23243821,2578.2,2578.1,0.0069954]
[1727002047942,13.23669036,2578.2,2578.1,0.0069954]
[1727002048242,10.81112432,2578.2,2578.1,0.0069954]
[1727002048448,13.2380267,2578.2,2578.1,0.0069954]
[1727002048750,10.81112432,2578.2,2578.1,0.0069954]
[1727002052655,11.36112432,2578.2,2578.1,0.0069954]
[1727002052961,14.19095137,2578.2,2578.1,0.0069954]
[1727002055545,14.19372821,2578.2,2578.1,0.0069954]
[1727002056220,11.36112432,2578.2,2578.1,0.0069954]
[1727002056422,14.19415596,2578.2,2578.1,0.0069954]
[1727002056946,10.81112432,2578.2,2578.1,0.0069954]
[1727002057148,13.64415596,2578.2,2578.1,0.0069954]
[1727002057524,11.36112432,2578.2,2578.1,0.0069954]
[1727002058374,14.19423055,2578.2,2578.1,0.0069954]
[1727002058539,11.36112432,2578.2,2578.1,0.0069954]
[1727002062658,14.7078715,2578.2,2578.1,0.0069954]
[1727002062975,23.26697816,2578.2,2578.1,0.0069954]
[1727002063129,19.92023098,2578.2,2578.1,0.0069954]
[1727002064778,23.26600241,2578.2,2578.1,0.0069954]
[1727002064940,11.36112432,2578.2,2578.1,0.0069954]
[1727002065138,10.81112432,2578.2,2578.1,0.0069954]
[1727002065779,10.64380439,2578.2,2578.1,0.0069954]
[1727002066063,7.81112432,2578.2,2578.1,0.0069954]
[1727002066949,10.81112432,2578.2,2578.1,0.0069954]
[1727002067367,13.23940766,2578.2,2578.1,0.0069954]
[1727002067578,10.81112432,2578.2,2578.1,0.0069954]
[1727002068567,5.33842432,2578.2,2578.1,0.0069954]
[1727002069657,8.33842432,2578.2,2578.1,0.0069954]
[1727002074142,8.33842432,2578.2,2578.1,2.4161954]
[1727002074342,6.98466345,2578.2,2578.1,1.28289841]
[1727002074679,6.87884,2578.1,2577.3,0.0378844]
[1727002074981,1.2144021,2577.8,2577.3,0.0378844]
[1727002075379,0.09995979,2577.7,2577.3,0.0378844]
[1727002075678,1.2144021,2577.8,2577.3,0.0378844]
[1727002075851,0.09990417,2577.7,2577.3,0.77967284]
[1727002076053,1.2144021,2577.8,2577.3,0.77967284]
[1727002076254,0.09990417,2577.7,2577.3,0.77967284]
[1727002076459,1.2144021,2577.8,2577.3,0.77967284]
[1727002076669,0.0998933,2577.7,2577.3,0.77967284]
[1727002076873,1.2144021,2577.8,2577.3,0.77967284]
[1727002077082,0.09982849,2577.6,2577.3,0.77967284]
[1727002077246,1.2144021,2577.8,2577.3,0.77967284]
[1727002077588,1.3142489,2577.7,2577.4,2.4092]
[1727002078088,0.0998468,2577.7,2577.4,2.4092]
[1727002078262,1.2144021,2577.7,2577.4,2.4092]
[1727002078649,0.09992549,2577.6,2577.4,2.4092]
[1727002079451,1.31432759,2577.6,2577.4,2.4092]
[1727002080541,1.2144021,2577.5,2577.4,2.4092]
[1727002080901,1.31441585,2577.5,2577.4,2.4092]
[1727002081101,1.31442498,2577.5,2577.4,2.4092]
[1727002082612,0.09979418,2577.5,2577.4,2.4092]
[1727002082810,1.31442498,2577.5,2577.4,2.4092]
[1727002083011,0.09979418,2577.5,2577.4,2.4092]
[1727002083334,1.31442498,2577.5,2577.4,2.4092]
[1727002083841,0.09979418,2577.5,2577.4,2.4092]
[1727002085433,1.31442498,2577.5,2577.4,2.4092]
[1727002085641,2.21477538,2577.5,2577.3,0.0378844]
[1727002085939,1.21475475,2577.4,2577.3,0.0378844]
[1727002086336,3.09977494,2577.4,2577.3,0.0378844]
[1727002086826,5.12393115,2577.4,2577.3,0.0378844]
[1727002087335,9.00380115,2577.4,2577.3,0.0378844]
[1727002087537,10.3417321,2577.4,2577.3,0.0378844]
[1727002089538,10.34176576,2577.4,2577.3,0.0378844]
[1727002089976,6.46189576,2577.4,2577.3,0.0378844]
[1727002090120,3.09977494,2577.4,2577.3,2.4600844]
[1727002090325,4.71925971,2577.4,2577.3,2.4600844]
[1727002090524,1.71925971,2577.4,2577.3,2.4600844]
[1727002091819,1.31459071,2577.4,2577.3,2.4600844]
[1727002094026,0.09977494,2577.4,2577.3,2.4600844]
[1727002094361,1.21481577,2577.6,2577.3,2.70609284]
[1727002094568,0.09885709,2577.4,2577.3,2.70609284]
[1727002094863,0.09849669,2577.4,2577.3,2.70609284]
[1727002095029,1.21481577,2577.8,2577.3,2.70609284]